[Event "Gibraltar Masters 18th"]
[Site "Gibraltar"]
[Date "2020.01.28"]
[Round "8.15"]
[White "Abdumalik, Zhansaya"]
[Black "Narayanan, SL."]
[Result "1/2-1/2"]
[ECO "B90"]
[WhiteElo "2471"]
[BlackElo "2637"]
[PlyCount "68"]
[EventDate "2020.01.21"]
[EventType "swiss"]
[EventRounds "10"]
[EventCountry "GGB"]
[SourceTitle "BritBase"]
[Source "John Saunders"]
[SourceDate "2021.06.05"]
[SourceVersion "1"]
[SourceVersionDate "2021.06.05"]
[SourceQuality "1"]
[TimeControl "40/100:0"]
[WhiteClock "0:38:16"]
[BlackClock "0:22:15"]

1. e4 {[%emt 0:00:00]} c5 {[%emt 0:00:00]} 2. Nf3 {[%emt 0:00:00]} d6 {[%emt 0:
00:00]} 3. d4 {[%emt 0:00:00]} cxd4 {[%emt 0:00:00]} 4. Nxd4 {[%emt 0:00:00]}
Nf6 {[%emt 0:00:00]} 5. Nc3 {[%emt 0:00:00]} a6 {[%emt 0:00:00]} 6. h3 {
[%emt 0:00:00]} e5 {[%emt 0:00:00]} 7. Nde2 {[%emt 0:00:00]} h5 {[%emt 0:00:00]
} 8. g3 {[%emt 0:00:00]} Be7 {[%emt 0:00:00]} 9. Bg2 {[%emt 0:00:00]} b5 {
[%emt 0:00:00]} 10. Nd5 {[%emt 0:00:00]} Nxd5 {[%emt 0:00:00]} 11. Qxd5 {
[%emt 0:00:00]} Ra7 {[%emt 0:00:00]} 12. Be3 {[%emt 0:00:00]} Rb7 {[%emt 0:00:
00]} 13. O-O {[%emt 0:00:00]} Nd7 {[%emt 0:00:00]} 14. Qd2 {[%emt 0:00:00]} O-O
{[%emt 0:00:00]} 15. Nc3 {[%emt 0:00:00]} Nf6 {[%emt 0:00:00]} 16. a3 {[%emt 0:
00:00]} Be6 {[%emt 0:00:00]} 17. Rfd1 {[%emt 0:00:00]} h4 {[%emt 0:00:00]} 18.
g4 {[%emt 0:00:00]} Nh7 {[%emt 0:00:00]} 19. Nd5 {[%emt 0:00:00]} Bxd5 {
[%emt 0:00:00]} 20. Qxd5 {[%emt 0:00:00]} Rb8 {[%emt 0:00:00]} 21. Rd2 {
[%emt 0:00:00]} Ng5 {[%emt 0:00:00]} 22. Bxg5 {[%emt 0:00:00]} Bxg5 {[%emt 0:
00:00]} 23. Rd3 {[%emt 0:00:00]} Rb6 {[%emt 0:00:00]} 24. Rad1 {[%emt 0:00:00]}
Qb8 {[%emt 0:00:00]} 25. Rc3 {[%emt 0:00:00]} g6 {[%emt 0:00:00]} 26. Bf1 {
[%emt 0:00:00]} Kg7 {[%emt 0:00:00]} 27. b4 {[%emt 0:00:00]} Qa7 {[%emt 0:00:
00]} 28. Rf3 {[%emt 0:00:00]} Rc8 {[%emt 0:00:00]} 29. c4 {[%emt 0:00:00]} bxc4
{[%emt 0:00:00]} 30. Bxc4 {[%emt 0:00:00]} Bf4 {[%emt 0:00:00]} 31. Kg2 {
[%emt 0:00:00]} Rbc6 {[%emt 0:00:00]} 32. Bb3 {[%emt 0:00:00]} R8c7 {[%emt 0:
00:00]} 33. Ba4 {[%emt 0:00:00]} Rb6 {[%emt 0:00:00]} 34. Bb3 {[%emt 0:00:00]}
Rbc6 {[%emt 0:00:00]} 1/2-1/2

[Event "Gibraltar Masters 18th"]
[Site "Gibraltar"]
[Date "2020.01.28"]
[Round "8.16"]
[White "Vocaturo, Daniele"]
[Black "Aryan, Chopra"]
[Result "1/2-1/2"]
[ECO "D85"]
[WhiteElo "2622"]
[BlackElo "2562"]
[PlyCount "60"]
[EventDate "2020.01.21"]
[EventType "swiss"]
[EventRounds "10"]
[EventCountry "GGB"]
[SourceTitle "BritBase"]
[Source "John Saunders"]
[SourceDate "2021.06.05"]
[SourceVersion "1"]
[SourceVersionDate "2021.06.05"]
[SourceQuality "1"]
[TimeControl "40/100:0"]
[WhiteClock "0:12:39"]
[BlackClock "0:37:41"]

1. d4 {[%emt 0:00:00]} Nf6 {[%emt 0:00:00]} 2. c4 {[%emt 0:00:00]} g6 {[%emt 0:
00:00]} 3. Nc3 {[%emt 0:00:00]} d5 {[%emt 0:00:00]} 4. cxd5 {[%emt 0:00:00]}
Nxd5 {[%emt 0:00:00]} 5. e4 {[%emt 0:00:00]} Nxc3 {[%emt 0:00:00]} 6. bxc3 {
[%emt 0:00:00]} Bg7 {[%emt 0:00:00]} 7. Nf3 {[%emt 0:00:00]} c5 {[%emt 0:00:00]
} 8. Rb1 {[%emt 0:00:00]} O-O {[%emt 0:00:00]} 9. Be2 {[%emt 0:00:00]} Nc6 {
[%emt 0:00:00]} 10. d5 {[%emt 0:00:00]} Ne5 {[%emt 0:00:00]} 11. Nxe5 {[%emt 0:
00:00]} Bxe5 {[%emt 0:00:00]} 12. Qd2 {[%emt 0:00:00]} e6 {[%emt 0:00:00]} 13.
f4 {[%emt 0:00:00]} Bc7 {[%emt 0:00:00]} 14. O-O {[%emt 0:00:00]} exd5 {
[%emt 0:00:00]} 15. exd5 {[%emt 0:00:00]} Ba5 {[%emt 0:00:00]} 16. d6 {[%emt 0:
00:00]} Rb8 {[%emt 0:00:00]} 17. Ba3 {[%emt 0:00:00]} b6 {[%emt 0:00:00]} 18.
Rb5 {[%emt 0:00:00]} Re8 {[%emt 0:00:00]} 19. Rxa5 {[%emt 0:00:00]} bxa5 {
[%emt 0:00:00]} 20. Bxc5 {[%emt 0:00:00]} Bd7 {[%emt 0:00:00]} 21. h3 {[%emt 0:
00:00]} Qf6 {[%emt 0:00:00]} 22. f5 {[%emt 0:00:00]} Bxf5 {[%emt 0:00:00]} 23.
d7 {[%emt 0:00:00]} Red8 {[%emt 0:00:00]} 24. g4 {[%emt 0:00:00]} Qe5 {[%emt 0:
00:00]} 25. Bd6 {[%emt 0:00:00]} Rb2 {[%emt 0:00:00]} 26. Qxb2 {[%emt 0:00:00]}
Qxd6 {[%emt 0:00:00]} 27. gxf5 {[%emt 0:00:00]} Qg3+ {[%emt 0:00:00]} 28. Kh1 {
[%emt 0:00:00]} Qxh3+ {[%emt 0:00:00]} 29. Kg1 {[%emt 0:00:00]} Qg3+ {[%emt 0:
00:00]} 30. Kh1 {[%emt 0:00:00]} Qh3+ {[%emt 0:00:00]} 1/2-1/2

[Event "Gibraltar Masters 18th"]
[Site "Gibraltar"]
[Date "2020.01.28"]
[Round "8.17"]
[White "Khotenashvili, Bela"]
[Black "Yilmaz, Mustafa"]
[Result "0-1"]
[ECO "E04"]
[WhiteElo "2446"]
[BlackElo "2607"]
[PlyCount "106"]
[EventDate "2020.01.21"]
[EventType "swiss"]
[EventRounds "10"]
[EventCountry "GGB"]
[SourceTitle "BritBase"]
[Source "John Saunders"]
[SourceDate "2021.06.05"]
[SourceVersion "1"]
[SourceVersionDate "2021.06.05"]
[SourceQuality "1"]
[TimeControl "40/100:0"]
[WhiteClock "0:01:12"]
[BlackClock "0:21:09"]

1. d4 {[%emt 0:00:00]} Nf6 {[%emt 0:00:00]} 2. c4 {[%emt 0:00:00]} e6 {[%emt 0:
00:00]} 3. Nf3 {[%emt 0:00:00]} d5 {[%emt 0:00:00]} 4. g3 {[%emt 0:00:00]} dxc4
{[%emt 0:00:00]} 5. Bg2 {[%emt 0:00:00]} a6 {[%emt 0:00:00]} 6. O-O {[%emt 0:
00:00]} Nc6 {[%emt 0:00:00]} 7. e3 {[%emt 0:00:00]} Rb8 {[%emt 0:00:00]} 8. Qe2
{[%emt 0:00:00]} b5 {[%emt 0:00:00]} 9. b3 {[%emt 0:00:00]} cxb3 {[%emt 0:00:
00]} 10. axb3 {[%emt 0:00:00]} Bd6 {[%emt 0:00:00]} 11. Bb2 {[%emt 0:00:00]}
Nb4 {[%emt 0:00:00]} 12. Rc1 {[%emt 0:00:00]} Bb7 {[%emt 0:00:00]} 13. Na3 {
[%emt 0:00:00]} O-O {[%emt 0:00:00]} 14. Nc2 {[%emt 0:00:00]} Nxc2 {[%emt 0:00:
00]} 15. Qxc2 {[%emt 0:00:00]} Be4 {[%emt 0:00:00]} 16. Qd1 {[%emt 0:00:00]}
Rb6 {[%emt 0:00:00]} 17. Ne1 {[%emt 0:00:00]} Bxg2 {[%emt 0:00:00]} 18. Kxg2 {
[%emt 0:00:00]} Qa8+ {[%emt 0:00:00]} 19. f3 {[%emt 0:00:00]} a5 {[%emt 0:00:
00]} 20. Nd3 {[%emt 0:00:00]} Ra6 {[%emt 0:00:00]} 21. e4 {[%emt 0:00:00]} c6 {
[%emt 0:00:00]} 22. Ra2 {[%emt 0:00:00]} Nd7 {[%emt 0:00:00]} 23. Bc3 {[%emt 0:
00:00]} Rb8 {[%emt 0:00:00]} 24. Ba1 {[%emt 0:00:00]} Bf8 {[%emt 0:00:00]} 25.
Rac2 {[%emt 0:00:00]} Qb7 {[%emt 0:00:00]} 26. Qe2 {[%emt 0:00:00]} Rba8 {
[%emt 0:00:00]} 27. h4 {[%emt 0:00:00]} a4 {[%emt 0:00:00]} 28. b4 {[%emt 0:00:
00]} Bd6 {[%emt 0:00:00]} 29. h5 {[%emt 0:00:00]} h6 {[%emt 0:00:00]} 30. Kh2 {
[%emt 0:00:49]} a3 {[%emt 0:00:00]} 31. Ra2 {[%emt 0:00:00]} Nb6 {[%emt 0:00:
00]} 32. f4 {[%emt 0:00:00]} Qd7 {[%emt 0:00:00]} 33. Rd1 {[%emt 0:00:00]} Nc4
{[%emt 0:00:00]} 34. g4 {[%emt 0:00:10]} Qe7 {[%emt 0:00:00]} 35. Bc3 {[%emt 0:
00:02]} Rd8 {[%emt 0:00:00]} 36. Qf2 {[%emt 0:00:00]} Bc7 {[%emt 0:00:00]} 37.
Nc5 {[%emt 0:00:00]} Ra7 {[%emt 0:00:00]} 38. Rg1 {[%emt 0:00:00]} f6 {[%emt 0:
00:00]} 39. Kh1 {[%emt 0:00:00]} e5 {[%emt 0:00:00]} 40. dxe5 {[%emt 0:00:01]}
fxe5 {[%emt 0:00:00]} 41. g5 {[%emt 0:00:00]} hxg5 {[%emt 0:00:00]} 42. Rxg5 {
[%emt 0:00:00]} Bb6 {[%emt 0:00:00]} 43. h6 {[%emt 0:00:00]} Bxc5 {[%emt 0:00:
00]} 44. bxc5 {[%emt 0:00:00]} Rd1+ {[%emt 0:00:00]} 45. Kh2 {[%emt 0:00:00]}
Qf6 {[%emt 0:00:00]} 46. Qh4 {[%emt 0:00:00]} Qxf4+ {[%emt 0:00:00]} 47. Qxf4 {
[%emt 0:00:00]} exf4 {[%emt 0:00:00]} 48. hxg7 {[%emt 0:00:00]} Rd3 {[%emt 0:
00:00]} 49. Ba1 {[%emt 0:00:00]} b4 {[%emt 0:00:00]} 50. Rg6 {[%emt 0:01:15]}
b3 {[%emt 0:00:00]} 51. Rxc6 {[%emt 0:00:00]} Rd8 {[%emt 0:00:00]} 52. Rh6 {
[%emt 0:00:00]} Rxg7 {[%emt 0:00:00]} 53. Bxg7 {[%emt 0:00:00]} Kxg7 {[%emt 0:
00:00]} 0-1

[Event "Gibraltar Masters 18th"]
[Site "Gibraltar"]
[Date "2020.01.28"]
[Round "8.18"]
[White "Matlakov, Maxim"]
[Black "Gagare, Shardul"]
[Result "1-0"]
[ECO "C91"]
[WhiteElo "2698"]
[BlackElo "2481"]
[PlyCount "93"]
[EventDate "2020.01.21"]
[EventType "swiss"]
[EventRounds "10"]
[EventCountry "GGB"]
[SourceTitle "BritBase"]
[Source "John Saunders"]
[SourceDate "2021.06.05"]
[SourceVersion "1"]
[SourceVersionDate "2021.06.05"]
[SourceQuality "1"]
[TimeControl "40/100:0"]
[WhiteClock "0:55:21"]
[BlackClock "0:44:05"]

1. e4 {[%emt 0:00:00]} e5 {[%emt 0:00:00]} 2. Nf3 {[%emt 0:00:00]} Nc6 {
[%emt 0:00:00]} 3. Bb5 {[%emt 0:00:00]} a6 {[%emt 0:00:00]} 4. Ba4 {[%emt 0:00:
00]} Nf6 {[%emt 0:00:00]} 5. O-O {[%emt 0:00:00]} Be7 {[%emt 0:00:00]} 6. Re1 {
[%emt 0:00:00]} b5 {[%emt 0:00:00]} 7. Bb3 {[%emt 0:00:00]} d6 {[%emt 0:00:00]}
8. c3 {[%emt 0:00:00]} O-O {[%emt 0:00:00]} 9. d4 {[%emt 0:00:00]} Bg4 {
[%emt 0:00:00]} 10. Be3 {[%emt 0:00:00]} exd4 {[%emt 0:00:00]} 11. cxd4 {
[%emt 0:00:00]} d5 {[%emt 0:00:00]} 12. e5 {[%emt 0:00:00]} Ne4 {[%emt 0:00:00]
} 13. h3 {[%emt 0:00:00]} Bh5 {[%emt 0:00:00]} 14. Nbd2 {[%emt 0:00:00]} Nxd2 {
[%emt 0:00:00]} 15. Qxd2 {[%emt 0:00:00]} Bxf3 {[%emt 0:00:00]} 16. Qc3 {
[%emt 0:00:00]} Rb8 {[%emt 0:00:00]} 17. gxf3 {[%emt 0:00:00]} Qd7 {[%emt 0:00:
00]} 18. a3 {[%emt 0:00:00]} b4 {[%emt 0:00:00]} 19. Qc2 {[%emt 0:00:00]} Na5 {
[%emt 0:00:00]} 20. Ba4 {[%emt 0:00:00]} Qxh3 {[%emt 0:00:00]} 21. Qxc7 {
[%emt 0:00:00]} Nc4 {[%emt 0:00:00]} 22. Qxe7 {[%emt 0:00:00]} Rb6 {[%emt 0:00:
00]} 23. Bg5 {[%emt 0:00:00]} Nd2 {[%emt 0:00:46]} 24. Bxd2 {[%emt 0:00:00]}
Rg6+ {[%emt 0:00:00]} 25. Qg5 {[%emt 0:00:00]} Qf5 {[%emt 0:00:00]} 26. Qg3 {
[%emt 0:00:00]} Rxg3+ {[%emt 0:00:00]} 27. fxg3 {[%emt 0:00:00]} Qxf3 {[%emt 0:
00:00]} 28. Bf4 {[%emt 0:00:00]} g5 {[%emt 0:00:00]} 29. Bd1 {[%emt 0:00:00]}
Qd3 {[%emt 0:00:00]} 30. Be3 {[%emt 0:00:00]} f5 {[%emt 0:00:00]} 31. axb4 {
[%emt 0:00:00]} f4 {[%emt 0:00:00]} 32. Ra3 {[%emt 0:00:00]} Qc4 {[%emt 0:00:
00]} 33. Bf2 {[%emt 0:00:00]} fxg3 {[%emt 0:00:00]} 34. Rxg3 {[%emt 0:00:00]}
Rxf2 {[%emt 0:00:00]} 35. Kxf2 {[%emt 0:00:00]} Qxd4+ {[%emt 0:00:00]} 36. Kf1
{[%emt 0:00:00]} Kf7 {[%emt 0:00:18]} 37. e6+ {[%emt 0:00:00]} Ke7 {[%emt 0:00:
00]} 38. Rf3 {[%emt 0:00:00]} Qc4+ {[%emt 0:00:00]} 39. Re2 {[%emt 0:00:00]}
Qh4 {[%emt 0:00:00]} 40. Rf7+ {[%emt 0:00:00]} Kd6 {[%emt 0:00:00]} 41. e7 {
[%emt 0:00:00]} Qh1+ {[%emt 0:00:00]} 42. Kf2 {[%emt 0:00:00]} Qh4+ {[%emt 0:
00:00]} 43. Ke3 {[%emt 0:00:00]} Qe4+ {[%emt 0:00:00]} 44. Kd2 {[%emt 0:00:00]}
Qxb4+ {[%emt 0:00:00]} 45. Kc1 {[%emt 0:00:00]} Qc4+ {[%emt 0:00:00]} 46. Kb1 {
[%emt 0:00:00]} Qd3+ {[%emt 0:00:00]} 47. Ka2 {[%emt 0:00:00]} 1-0

[Event "Gibraltar Masters 18th"]
[Site "Gibraltar"]
[Date "2020.01.28"]
[Round "8.19"]
[White "Lalith, Babu M R"]
[Black "Le, Quang Liem"]
[Result "0-1"]
[ECO "E16"]
[WhiteElo "2558"]
[BlackElo "2713"]
[PlyCount "76"]
[EventDate "2020.01.21"]
[EventType "swiss"]
[EventRounds "10"]
[EventCountry "GGB"]
[SourceTitle "BritBase"]
[Source "John Saunders"]
[SourceDate "2021.06.05"]
[SourceVersion "1"]
[SourceVersionDate "2021.06.05"]
[SourceQuality "1"]
[TimeControl "40/100:0"]
[WhiteClock "0:13:15"]
[BlackClock "0:23:45"]

1. d4 {[%emt 0:00:00]} Nf6 {[%emt 0:00:00]} 2. c4 {[%emt 0:00:00]} e6 {[%emt 0:
00:00]} 3. Nf3 {[%emt 0:00:00]} b6 {[%emt 0:00:00]} 4. g3 {[%emt 0:00:00]} Bb7
{[%emt 0:00:00]} 5. Bg2 {[%emt 0:00:00]} g6 {[%emt 0:00:00]} 6. Qc2 {[%emt 0:
00:00]} Bg7 {[%emt 0:00:00]} 7. Nc3 {[%emt 0:00:00]} O-O {[%emt 0:00:00]} 8.
O-O {[%emt 0:00:00]} d5 {[%emt 0:00:00]} 9. Ne5 {[%emt 0:00:00]} Nbd7 {[%emt 0:
00:00]} 10. Rd1 {[%emt 0:00:00]} c6 {[%emt 0:00:00]} 11. Bg5 {[%emt 0:00:00]}
h6 {[%emt 0:00:00]} 12. Nxd7 {[%emt 0:00:00]} Qxd7 {[%emt 0:00:00]} 13. Bxf6 {
[%emt 0:00:00]} Bxf6 {[%emt 0:00:00]} 14. e4 {[%emt 0:00:00]} dxc4 {[%emt 0:00:
00]} 15. e5 {[%emt 0:00:00]} Be7 {[%emt 0:00:00]} 16. Ne4 {[%emt 0:00:00]} Kg7
{[%emt 0:00:00]} 17. Qxc4 {[%emt 0:00:00]} Rfd8 {[%emt 0:00:00]} 18. Qe2 {
[%emt 0:00:00]} Qc7 {[%emt 0:00:00]} 19. Rac1 {[%emt 0:00:00]} Rd7 {[%emt 0:00:
00]} 20. Qe3 {[%emt 0:00:00]} Rad8 {[%emt 0:00:00]} 21. Nf6 {[%emt 0:00:00]}
Bxf6 {[%emt 0:00:00]} 22. exf6+ {[%emt 0:00:00]} Kh7 {[%emt 0:00:00]} 23. Rc4 {
[%emt 0:00:00]} Qd6 {[%emt 0:00:00]} 24. Rdc1 {[%emt 0:00:00]} b5 {[%emt 0:00:
00]} 25. Rc5 {[%emt 0:00:00]} Qxd4 {[%emt 0:00:00]} 26. Qxd4 {[%emt 0:00:00]}
Rxd4 {[%emt 0:00:00]} 27. Bxc6 {[%emt 0:00:00]} Bxc6 {[%emt 0:00:00]} 28. Rxc6
{[%emt 0:00:00]} g5 {[%emt 0:00:00]} 29. R1c5 {[%emt 0:00:00]} Rd2 {[%emt 0:00:
00]} 30. Rxb5 {[%emt 0:00:00]} Re2 {[%emt 0:00:00]} 31. Rc3 {[%emt 0:00:00]}
Rdd2 {[%emt 0:00:00]} 32. Rf3 {[%emt 0:00:00]} e5 {[%emt 0:00:00]} 33. Rb7 {
[%emt 0:00:00]} Kg6 {[%emt 0:00:00]} 34. Rb8 {[%emt 0:00:00]} e4 {[%emt 0:00:
00]} 35. Rg8+ {[%emt 0:00:00]} Kh5 {[%emt 0:00:00]} 36. Re3 {[%emt 0:00:00]}
Rxe3 {[%emt 0:00:00]} 37. fxe3 {[%emt 0:00:00]} Kg4 {[%emt 0:00:00]} 38. Kf1 {
[%emt 0:00:00]} Rxb2 {[%emt 0:00:00]} 0-1

[Event "Gibraltar Masters 18th"]
[Site "Gibraltar"]
[Date "2020.01.28"]
[Round "8.20"]
[White "Sasikiran, Krishnan"]
[Black "Sadhwani, Raunak"]
[Result "1/2-1/2"]
[ECO "C43"]
[WhiteElo "2648"]
[BlackElo "2522"]
[PlyCount "133"]
[EventDate "2020.01.21"]
[EventType "swiss"]
[EventRounds "10"]
[EventCountry "GGB"]
[SourceTitle "BritBase"]
[Source "John Saunders"]
[SourceDate "2021.06.05"]
[SourceVersion "1"]
[SourceVersionDate "2021.06.05"]
[SourceQuality "1"]
[TimeControl "40/100:0"]
[WhiteClock "0:05:29"]
[BlackClock "0:14:38"]

1. e4 {[%emt 0:00:00]} e5 {[%emt 0:00:00]} 2. Nf3 {[%emt 0:00:27]} Nf6 {
[%emt 0:00:00]} 3. d4 {[%emt 0:00:00]} Nxe4 {[%emt 0:00:00]} 4. Bd3 {[%emt 0:
00:00]} d5 {[%emt 0:00:00]} 5. Nxe5 {[%emt 0:00:00]} Nd7 {[%emt 0:00:00]} 6.
Nc3 {[%emt 0:00:00]} Nxe5 {[%emt 0:00:00]} 7. dxe5 {[%emt 0:00:00]} Nxc3 {
[%emt 0:00:00]} 8. bxc3 {[%emt 0:00:00]} Be7 {[%emt 0:00:00]} 9. O-O {[%emt 0:
00:00]} O-O {[%emt 0:00:00]} 10. f4 {[%emt 0:00:00]} f5 {[%emt 0:00:00]} 11.
Be3 {[%emt 0:00:00]} Be6 {[%emt 0:00:00]} 12. Qe2 {[%emt 0:00:00]} c6 {[%emt 0:
00:00]} 13. a4 {[%emt 0:00:00]} Qa5 {[%emt 0:00:00]} 14. Bd2 {[%emt 0:00:00]}
Bc5+ {[%emt 0:00:00]} 15. Kh1 {[%emt 0:00:00]} Qc7 {[%emt 0:00:00]} 16. Rab1 {
[%emt 0:00:00]} Qf7 {[%emt 0:00:00]} 17. Be3 {[%emt 0:00:00]} b6 {[%emt 0:00:
00]} 18. Rfd1 {[%emt 0:00:00]} Bxe3 {[%emt 0:00:00]} 19. Qxe3 {[%emt 0:00:00]}
Qe7 {[%emt 0:00:00]} 20. Be2 {[%emt 0:00:00]} Qa3 {[%emt 0:00:00]} 21. Ra1 {
[%emt 0:00:00]} Qc5 {[%emt 0:00:00]} 22. Qd4 {[%emt 0:00:00]} Qxd4 {[%emt 0:00:
00]} 23. cxd4 {[%emt 0:00:00]} Rac8 {[%emt 0:00:00]} 24. Kg1 {[%emt 0:00:00]}
Kf7 {[%emt 0:00:00]} 25. Ra3 {[%emt 0:00:00]} g6 {[%emt 0:00:00]} 26. Rh3 {
[%emt 0:00:00]} Kg7 {[%emt 0:00:00]} 27. a5 {[%emt 0:00:00]} b5 {[%emt 0:00:00]
} 28. Rc3 {[%emt 0:00:00]} h5 {[%emt 0:00:00]} 29. Kf2 {[%emt 0:00:00]} h4 {
[%emt 0:00:00]} 30. Rc5 {[%emt 0:00:00]} Bd7 {[%emt 0:00:00]} 31. Rd3 {[%emt 0:
00:00]} Rh8 {[%emt 0:00:00]} 32. Re3 {[%emt 0:00:00]} Kf7 {[%emt 0:00:00]} 33.
Rec3 {[%emt 0:00:00]} Ke7 {[%emt 0:00:00]} 34. Ke3 {[%emt 0:00:00]} Kf7 {
[%emt 0:00:00]} 35. Kd2 {[%emt 0:00:00]} Ke7 {[%emt 0:00:00]} 36. Bf3 {[%emt 0:
00:00]} Ke6 {[%emt 0:00:00]} 37. Ke3 {[%emt 0:00:00]} Ke7 {[%emt 0:00:00]} 38.
Kf2 {[%emt 0:00:00]} Kf7 {[%emt 0:00:00]} 39. Kg1 {[%emt 0:00:00]} Ke7 {
[%emt 0:00:00]} 40. Be2 {[%emt 0:00:00]} Kf7 {[%emt 0:00:00]} 41. Rh3 {[%emt 0:
01:38]} Ke7 {[%emt 0:00:00]} 42. Re3 {[%emt 0:00:00]} Kf7 {[%emt 0:00:00]} 43.
h3 {[%emt 0:00:00]} Ke7 {[%emt 0:00:00]} 44. Kf2 {[%emt 0:00:00]} Kf7 {[%emt 0:
00:00]} 45. Bf1 {[%emt 0:00:00]} Ke7 {[%emt 0:00:00]} 46. Rec3 {[%emt 0:00:00]}
Kf7 {[%emt 0:00:00]} 47. Be2 {[%emt 0:00:00]} Ke7 {[%emt 0:00:00]} 48. Re3 {
[%emt 0:00:00]} Kf7 {[%emt 0:00:00]} 49. g3 {[%emt 0:00:00]} hxg3+ {[%emt 0:00:
00]} 50. Kxg3 {[%emt 0:00:00]} Ke7 {[%emt 0:00:00]} 51. h4 {[%emt 0:00:00]} Be6
{[%emt 0:00:00]} 52. Rec3 {[%emt 0:00:00]} Bd7 {[%emt 0:00:00]} 53. Bf3 {
[%emt 0:00:00]} Rhg8 {[%emt 0:00:00]} 54. Re3 {[%emt 0:00:00]} Rh8 {[%emt 0:00:
00]} 55. Re1 {[%emt 0:00:00]} b4 {[%emt 0:00:00]} 56. Rb1 {[%emt 0:00:00]} Rb8
{[%emt 0:00:00]} 57. Rb3 {[%emt 0:00:00]} Rhc8 {[%emt 0:00:00]} 58. Be2 {
[%emt 0:00:00]} Ke6 {[%emt 0:00:00]} 59. Ba6 {[%emt 0:00:00]} Rh8 {[%emt 0:00:
00]} 60. c3 {[%emt 0:00:00]} g5 {[%emt 0:00:00]} 61. hxg5 {[%emt 0:00:00]} Rh1
{[%emt 0:00:00]} 62. Be2 {[%emt 0:00:00]} Rbh8 {[%emt 0:00:00]} 63. Bf3 {
[%emt 0:00:00]} R1h2 {[%emt 0:00:00]} 64. Bg2 {[%emt 0:00:00]} R2h4 {[%emt 0:
00:00]} 65. Bf3 {[%emt 0:00:00]} Rh2 {[%emt 0:00:00]} 66. Bg2 {[%emt 0:00:00]}
R2h4 {[%emt 0:00:00]} 67. Bf3 {[%emt 0:00:00]} 1/2-1/2

[Event "Gibraltar Masters 18th"]
[Site "Gibraltar"]
[Date "2020.01.28"]
[Round "8.21"]
[White "Deac, Bogdan-Daniel"]
[Black "Barbosa, Evandro Amorim"]
[Result "1-0"]
[ECO "A34"]
[WhiteElo "2626"]
[BlackElo "2501"]
[PlyCount "79"]
[EventDate "2020.01.21"]
[EventType "swiss"]
[EventRounds "10"]
[EventCountry "GGB"]
[SourceTitle "BritBase"]
[Source "John Saunders"]
[SourceDate "2021.06.05"]
[SourceVersion "1"]
[SourceVersionDate "2021.06.05"]
[SourceQuality "1"]
[TimeControl "40/100:0"]
[WhiteClock "0:20:22"]
[BlackClock "0:01:00"]

1. Nf3 {[%emt 0:00:00]} c5 {[%emt 0:00:00]} 2. c4 {[%emt 0:00:00]} Nc6 {
[%emt 0:00:00]} 3. Nc3 {[%emt 0:00:00]} e5 {[%emt 0:00:00]} 4. e3 {[%emt 0:00:
00]} Nf6 {[%emt 0:00:00]} 5. d4 {[%emt 0:00:00]} e4 {[%emt 0:00:00]} 6. d5 {
[%emt 0:00:00]} exf3 {[%emt 0:00:00]} 7. dxc6 {[%emt 0:00:00]} bxc6 {[%emt 0:
00:00]} 8. Qxf3 {[%emt 0:00:00]} Bd6 {[%emt 0:00:00]} 9. g4 {[%emt 0:00:00]}
O-O {[%emt 0:00:00]} 10. Bd3 {[%emt 0:00:00]} Qe7 {[%emt 0:00:00]} 11. g5 {
[%emt 0:00:00]} Ne8 {[%emt 0:00:00]} 12. Qe4 {[%emt 0:00:00]} Qxe4 {[%emt 0:00:
00]} 13. Bxe4 {[%emt 0:00:00]} f5 {[%emt 0:00:00]} 14. Bg2 {[%emt 0:00:00]} Be7
{[%emt 0:00:00]} 15. f4 {[%emt 0:00:00]} Bb7 {[%emt 0:00:00]} 16. b3 {[%emt 0:
00:00]} Nc7 {[%emt 0:00:00]} 17. Bb2 {[%emt 0:00:00]} d5 {[%emt 0:00:00]} 18.
O-O-O {[%emt 0:00:00]} Rad8 {[%emt 0:00:00]} 19. Rd2 {[%emt 0:00:00]} dxc4 {
[%emt 0:00:00]} 20. Rxd8 {[%emt 0:00:00]} Rxd8 {[%emt 0:00:00]} 21. bxc4 {
[%emt 0:00:00]} Ba6 {[%emt 0:00:00]} 22. Bf1 {[%emt 0:00:00]} Na8 {[%emt 0:00:
00]} 23. Nb1 {[%emt 0:00:00]} Nb6 {[%emt 0:00:00]} 24. Nd2 {[%emt 0:00:00]} Bd6
{[%emt 0:00:00]} 25. h4 {[%emt 0:00:00]} Na4 {[%emt 0:00:00]} 26. Ba1 {[%emt 0:
00:00]} Bc7 {[%emt 0:00:00]} 27. Kc2 {[%emt 0:00:00]} Re8 {[%emt 0:00:00]} 28.
Rh3 {[%emt 0:00:00]} Nb6 {[%emt 0:00:00]} 29. Bd3 {[%emt 0:00:00]} Bd6 {
[%emt 0:00:00]} 30. h5 {[%emt 0:00:00]} Bc7 {[%emt 0:00:00]} 31. Bxf5 {[%emt 0:
00:00]} Nxc4 {[%emt 0:00:00]} 32. Nxc4 {[%emt 0:00:00]} Bxc4 {[%emt 0:00:00]}
33. h6 {[%emt 0:00:00]} Bf1 {[%emt 0:00:14]} 34. Rf3 {[%emt 0:00:00]} Bg2 {
[%emt 0:00:52]} 35. Rg3 {[%emt 0:00:00]} Be4+ {[%emt 0:00:00]} 36. Bxe4 {
[%emt 0:00:00]} Rxe4 {[%emt 0:00:00]} 37. Bxg7 {[%emt 0:00:00]} Kf7 {[%emt 0:
00:00]} 38. Bc3 {[%emt 0:00:00]} Kg6 {[%emt 0:00:00]} 39. Kd3 {[%emt 0:00:00]}
Ra4 {[%emt 0:00:00]} 40. Rg2 {[%emt 0:00:00]} 1-0